bitfinex-derivatives/quotes_SOLF0:USTF0_20251117
["timestamp","ask_amount","ask_price","bid_price","bid_amount"]
[1763345612390,3.1,139.01,138.95,7.41310241]
[1763345612682,3.1,139.04,138.95,7.41310241]
[1763345612987,0.05118021,139.01,138.98,0.05023735]
[1763345613380,0.05118021,139.01,138.98,7.46333976]
[1763345617080,0.05118021,139.01,138.98,0.05023735]
[1763345619292,3.1,139.07,139.0,7.41310241]
[1763345620896,3.14916517,139.05,139.02,0.05289012]
[1763345621192,0.05114656,139.05,139.02,0.0543066]
[1763345621694,3.15114656,139.05,139.02,0.0543066]
[1763345621890,3.15114656,139.05,138.96,7.41310241]
[1763345622195,3.1,139.05,138.96,7.41310241]
[1763345622688,3.1,139.05,138.96,14.02734862]
[1763345622894,0.04871148,139.02,138.99,0.05215432]
[1763345623596,0.04871148,139.02,138.99,7.46525673]
[1763345625190,3.1,139.08,138.99,7.46525673]
[1763345625493,6.65208128,139.13,139.06,7.41310241]
[1763345625694,3.1,139.17,139.09,7.41310241]
[1763345625895,3.1,139.17,139.12,7.41310241]
[1763345626090,3.1,139.21,139.13,0.0510691]
[1763345626391,19.9588476,139.29,139.13,0.0510691]
[1763345626392,3.14918155,139.16,139.13,0.0510691]
[1763345626595,3.14643043,139.16,139.13,0.05311213]
[1763345627295,3.1,139.15,139.06,7.41310241]
[1763345628200,3.1,139.2,139.09,7.41310241]
[1763345628399,3.14853115,139.16,139.13,0.05011804]
[1763345628601,3.15515655,139.16,139.13,0.04860094]
[1763345629495,0.05515655,139.16,139.13,0.04860094]
[1763345630005,3.15515655,139.16,139.13,0.04860094]
[1763345631294,3.27,139.15,139.03,14.02734862]
[1763345631593,3.27,139.15,139.03,7.41310241]
[1763345632300,0.04724789,139.1,139.03,7.41310241]
[1763345632499,0.04724789,139.1,138.99,6.61424621]
[1763345632500,3.31724789,139.1,138.99,6.61424621]
[1763345632699,6.65208128,139.19,138.97,7.41310241]
[1763345632700,3.27,139.05,138.97,7.41310241]
[1763345632904,0.05139355,139.02,138.97,7.41310241]
[1763345634896,3.27,139.08,139.0,7.41310241]
[1763345635697,3.32098141,139.05,139.03,0.04986287]
[1763345635902,3.31718884,139.05,139.03,0.04738019]
[1763345636295,3.31718884,139.05,138.97,7.41310241]
[1763345640204,3.31718884,139.05,138.93,6.4826]
[1763345640205,3.31718884,139.05,138.93,7.41310241]
[1763345640403,0.04604333,139.0,138.93,7.41310241]
[1763345640704,0.04631235,138.98,138.93,7.41310241]
[1763345642201,0.04631235,138.98,138.91,62.0]
[1763345642202,0.04631235,138.98,138.96,7.41310241]
[1763345643793,3.27,139.06,138.96,7.41310241]
[1763345644906,0.05000843,139.02,139.0,0.05184281]
[1763345646006,3.32000843,139.02,139.0,0.05184281]
[1763345646506,0.05000843,139.02,139.0,0.05184281]
[1763345648912,3.32000843,139.02,139.0,0.05184281]
[1763345650202,0.05000843,139.02,139.0,0.05184281]
[1763345650405,5.64208128,139.15,139.01,7.41310241]
[1763345650709,6.67154947,139.22,139.11,7.41310241]
[1763345650908,3.27,139.3,139.19,7.41310241]
[1763345651109,3.27,139.3,139.23,7.41310241]
[1763345651515,3.27,139.28,139.19,7.41310241]
[1763345651710,7.41310241,139.38,139.25,0.04907241]
[1763345651711,3.27,139.26,139.25,0.04907241]
[1763345651917,0.04582466,139.27,139.25,8.12869907]
[1763345652109,0.04582466,139.27,139.16,7.41310241]
[1763345652310,7.41310241,139.35,139.16,7.41310241]
[1763345652706,21.64,139.38,139.17,6.87268101]
[1763345652902,0.04737784,139.24,139.22,0.05010014]
[1763345653216,0.05432463,139.24,139.23,6.87268101]
[1763345654016,0.05432463,139.24,139.23,6.86688049]
[1763345656614,3.17432463,139.24,139.23,6.86688049]
[1763345656807,3.17432463,139.24,139.22,0.05010014]
[1763345657009,3.17432463,139.24,139.23,6.85366656]
[1763345657215,3.17432463,139.24,139.22,0.05010014]
[1763345657614,3.17432463,139.24,139.23,6.85021365]
[1763345658518,3.12,139.23,139.13,14.02734862]
[1763345658707,3.12,139.28,139.13,7.41310241]
[1763345659119,3.12,139.28,139.16,7.41310241]
[1763345659611,0.04857047,139.23,139.16,7.41310241]
[1763345660011,0.04857047,139.23,139.19,7.41310241]
[1763345660210,3.12,139.28,139.19,7.41310241]
[1763345660211,3.12,139.28,139.2,5.81226391]
[1763345660413,3.12,139.28,139.21,5.81226391]
[1763345660710,3.12,139.28,139.19,14.02734862]
[1763345660711,3.12,139.28,139.22,5.81226391]
[1763345660911,3.12,139.28,139.23,5.81226391]
[1763345661111,3.12,139.28,139.2,6.61424621]
[1763345661317,0.05538793,139.25,139.23,0.05124916]
[1763345661910,3.17538793,139.25,139.23,0.05124916]
[1763345663023,17.92295919,139.33,139.23,0.05124916]
[1763345664019,0.04998967,139.27,139.24,8.98608285]
[1763345664324,0.04998967,139.27,139.17,6.61424621]
[1763345664532,17.92295919,139.33,139.18,5.80456921]
[1763345664719,17.92295919,139.33,139.19,5.80456921]
[1763345664916,9.44313975,139.29,139.15,7.45424621]
[1763345665221,3.12,139.28,139.17,0.84]
[1763345665525,3.12,139.23,139.21,0.05108595]
[1763345666724,0.05336891,139.24,139.21,0.05108595]
[1763345666924,3.12,139.26,139.22,5.80100377]
[1763345667123,3.12,139.26,139.21,0.05108595]
[1763345667322,3.12,139.26,139.22,5.80099658]
[1763345667624,3.12,139.26,139.21,0.05108595]
[1763345667926,3.1744549,139.25,139.21,0.05108595]
[1763345673225,0.0544549,139.25,139.21,0.89108595]
[1763345673432,3.1744549,139.25,139.22,12.53456622]
[1763345673631,3.1744549,139.25,139.21,0.05108595]
[1763345675831,3.1744549,139.25,139.22,7.13447531]
[1763345676016,3.1744549,139.25,139.21,0.05108595]
[1763345676017,0.0544549,139.25,139.24,0.84]
[1763345676224,0.0544549,139.25,139.24,16.12060872]
[1763345677025,3.12,139.28,139.24,16.96060872]
[1763345677221,3.12,139.28,139.25,16.12060872]
[1763345677427,5.15003734,139.29,139.26,16.12060872]
[1763345677624,2.03003734,139.29,139.27,16.10949755]
[1763345677823,2.03003734,139.29,139.24,0.84]
[1763345677824,2.03003734,139.29,139.28,16.10862897]
[1763345678024,5.15003734,139.29,139.28,16.10862897]
[1763345679337,5.15003734,139.29,139.28,5.56613341]
[1763345680526,5.15003734,139.29,139.28,12.68931799]
[1763345681427,5.15003734,139.29,139.28,5.56613341]
[1763345681739,3.12,139.28,139.18,3.29]
[1763345682039,3.12,139.28,139.19,16.22428472]
[1763345682231,3.12,139.28,139.2,12.93428472]
[1763345682430,3.12,139.28,139.21,7.13292716]
[1763345682634,3.12,139.25,139.23,0.04707511]
[1763345682831,3.12,139.25,139.24,7.13292716]
[1763345684133,3.12,139.25,139.23,0.04707511]
[1763345684134,3.12,139.24,139.23,0.04707511]
[1763345686238,3.12,139.23,139.16,3.29]
[1763345686432,3.12,139.23,139.17,12.97944798]
[1763345686633,3.12,139.23,139.18,7.15899453]
[1763345686933,3.12,139.23,139.16,3.29]
[1763345686934,3.12,139.23,139.19,7.15899453]
[1763345687136,0.0468643,139.22,139.2,7.21171182]
[1763345687327,3.12,139.21,139.2,0.05271729]
[1763345687531,3.12,139.21,139.2,7.21943981]
[1763345687728,3.12,139.26,139.21,3.29]
[1763345688037,3.12,139.26,139.22,7.16672252]
[1763345688235,3.12,139.26,139.16,3.29]
[1763345688435,3.12,139.26,139.17,16.1171648]
[1763345688635,3.12,139.26,139.18,12.8271648]
[1763345688828,3.16932027,139.23,139.21,0.05505152]
[1763345689032,3.16709083,139.23,139.22,6.99982208]
[1763345690847,3.16709083,139.23,139.21,0.05505152]
[1763345691047,0.04709083,139.23,139.22,7.01260673]
[1763345692241,3.12,139.26,139.22,7.01260673]
[1763345692439,82.71206477,139.29,139.21,0.05505152]
[1763345692440,3.33,139.28,139.23,10.19260673]
[1763345692646,3.33,139.28,139.24,10.19260673]
[1763345692843,3.33,139.28,139.25,7.01260673]
[1763345693147,3.33,139.28,139.26,7.01260673]
[1763345693351,3.33,139.28,139.27,7.01260673]
[1763345693542,3.33,139.28,139.27,15.99940742]
[1763345696149,4.77,139.28,139.27,6.76930323]
[1763345697154,3.33,139.27,139.26,0.05420752]
[1763345700443,3.33,139.26,139.16,6.56488949]
[1763345700644,3.33,139.28,139.16,3.18]
[1763345700847,5.36003734,139.29,139.17,3.18]
[1763345701053,3.33,139.28,139.19,3.18]
[1763345701242,3.33,139.28,139.2,3.18]
[1763345701558,0.05483709,139.25,139.23,3.22581105]
[1763345702150,0.05483709,139.25,139.23,0.04581105]
[1763345702462,3.33,139.28,139.23,0.04581105]
[1763345703253,3.33,139.26,139.23,0.04581105]
[1763345704153,0.05005108,139.27,139.23,3.22581105]
[1763345705950,3.38005108,139.27,139.23,3.22581105]
[1763345706560,2.03003734,139.29,139.25,3.18]
[1763345706759,2.03003734,139.29,139.26,3.18]
[1763345706955,2.03003734,139.29,139.27,3.18]
[1763345707352,10.50985678,139.33,139.27,3.18]
[1763345707353,10.50985678,139.33,139.29,3.18]
[1763345707558,0.048081,139.32,139.31,3.18]
[1763345708157,0.048081,139.32,139.31,12.16078301]
[1763345708548,0.048081,139.32,139.31,8.98078301]
[1763345708752,3.378081,139.32,139.31,8.06851004]
[1763345708954,0.048081,139.32,139.31,8.06851004]
[1763345709562,0.048081,139.32,139.31,11.24851004]
[1763345712458,9.61233398,139.33,139.32,3.18]
[1763345714061,9.61233398,139.33,139.3,3.22779192]
[1763345716169,3.33,139.32,139.3,0.04779192]
[1763345716464,9.61233398,139.33,139.3,3.22779192]
[1763345717156,12.99233398,139.33,139.3,0.04779192]
[1763345717359,3.38,139.32,139.3,0.04779192]
[1763345718167,9.61233398,139.33,139.3,3.19779192]
[1763345719379,3.38,139.32,139.3,0.04779192]
[1763345719566,9.61233398,139.33,139.3,3.19779192]
[1763345720961,9.61233398,139.33,139.32,3.15]
[1763345721163,9.61233398,139.33,139.32,12.13023339]
[1763345722274,9.61233398,139.33,139.32,8.98023339]
[1763345722870,9.61233398,139.33,139.32,12.40023339]
[1763345723075,9.61233398,139.33,139.32,8.98023339]
[1763345723873,9.61233398,139.33,139.32,12.40023339]
[1763345727472,12.70233398,139.33,139.32,8.98023339]
[1763345728070,9.61233398,139.33,139.32,12.40023339]
[1763345728271,9.61233398,139.33,139.32,8.98023339]
[1763345733082,12.70233398,139.33,139.32,8.98023339]
[1763345735074,9.61233398,139.33,139.32,8.98023339]
[1763345736476,9.61233398,139.33,139.32,12.40023339]
[1763345736678,6.02026017,139.33,139.32,12.40023339]
[1763345736876,6.02026017,139.33,139.32,8.98023339]
[1763345737981,9.11026017,139.33,139.32,8.98023339]
[1763345738481,6.02026017,139.33,139.32,8.98023339]
[1763345739985,10.55026017,139.33,139.32,8.07171745]
[1763345740771,9.11026017,139.33,139.32,8.07171745]
[1763345743983,6.02026017,139.33,139.32,8.07171745]
[1763345746584,9.11026017,139.33,139.32,8.07171745]
[1763345747190,6.02026017,139.33,139.32,8.07171745]
[1763345747786,6.02026017,139.33,139.32,11.49171745]
[1763345747988,6.02026017,139.33,139.32,8.07171745]
[1763345749093,9.11026017,139.33,139.32,8.07171745]
[1763345750199,3.72174962,139.33,139.32,8.07171745]
[1763345751795,0.12902984,139.33,139.32,8.07171745]
[1763345756204,1.56902984,139.33,139.3,0.04779192]
[1763345756398,10.28906465,139.33,139.31,8.98303817]
[1763345756603,8.84906465,139.33,139.23,3.24]
[1763345756810,76.08,139.37,139.2,3.24]
[1763345756811,37.86426654,139.31,139.2,3.24]
[1763345757008,30.93269496,139.43,139.17,3.24]
[1763345757009,16.22426654,139.28,139.17,3.24]
[1763345757311,0.04547058,139.24,139.21,0.05073077]
[1763345762002,0.04547058,139.24,139.13,3.24]
[1763345762206,8.84906465,139.26,139.13,3.24]
[1763345762409,84.86906465,139.27,139.13,3.24]
[1763345762712,7.37520189,139.23,139.08,3.24]
[1763345763105,0.0469869,139.17,139.14,0.04935674]
[1763345763423,76.1,139.16,139.14,0.05308952]
[1763345764016,76.1,139.16,139.14,3.29308952]
[1763345764318,76.1,139.16,139.14,0.05308952]
[1763345768316,76.1,139.16,139.15,8.99328676]
[1763345769102,76.1,139.16,139.14,0.05308952]
[1763345771716,76.1,139.16,139.15,8.99328811]
[1763345772711,76.1,139.16,139.14,0.05308952]
[1763345773419,76.08,139.16,139.14,3.29308952]
[1763345773618,76.08,139.16,139.14,0.05308952]
[1763345775312,76.08,139.16,139.14,3.29308952]
[1763345775614,0.05245002,139.17,139.16,3.24]
[1763345775819,0.05245002,139.17,139.16,12.23287884]
[1763345776615,0.05245002,139.17,139.16,8.99287884]
[1763345776917,0.05245002,139.17,139.14,0.05308952]
[1763345778808,7.42765191,139.17,139.14,0.05308952]
[1763345780621,76.1,139.16,139.14,0.05308952]
[1763345782518,76.1,139.16,139.06,3.16]
[1763345782820,7.37520189,139.14,139.07,8.99597606]
[1763345783020,7.37520189,139.14,139.06,3.16]
[1763345783021,7.37520189,139.14,139.08,8.99597606]
[1763345783208,7.37520189,139.14,139.09,8.99597606]
[1763345783413,0.04841733,139.13,139.1,0.05479282]
[1763345783611,0.04708481,139.13,139.1,0.05115657]
[1763345784321,7.37520189,139.11,139.03,3.16]
[1763345784522,76.1,139.1,139.04,8.99842733]
[1763345784715,76.1,139.1,139.05,8.99842733]
[1763345784916,76.1,139.1,139.06,8.99842733]
[1763345785221,76.1,139.1,139.07,8.99842733]
[1763345785520,76.15181984,139.1,139.07,0.05544953]
[1763345788923,0.05181984,139.1,139.07,0.05544953]
[1763345789123,76.12,139.09,139.08,12.15830339]
[1763345789318,76.12,139.09,139.08,8.99830339]
[1763345792428,76.12,139.09,139.08,8.99802582]
[1763345796627,76.12,139.09,139.08,12.15802582]
[1763345796929,76.12,139.09,139.08,8.99802582]
[1763345800131,8.84906465,139.24,139.1,3.16]
[1763345800323,4.2521121,139.19,139.11,12.15802582]
[1763345800634,76.24,139.18,139.12,8.99802582]
[1763345800830,1.7844874,139.15,139.13,8.99802582]
[1763345801034,1.7844874,139.15,139.14,8.99802582]
[1763345801239,1.83176388,139.15,139.14,8.99802582]
[1763345802337,0.04727648,139.15,139.14,12.15802582]
[1763345802729,0.04727648,139.15,139.14,8.99802582]
[1763345805039,0.04727648,139.15,139.14,12.15802582]
[1763345807637,76.24,139.18,139.15,3.16]
[1763345807840,76.24,139.18,139.17,3.16]
[1763345808038,76.24,139.18,139.17,12.15802582]
[1763345810935,76.24,139.18,139.17,12.1512191]
[1763345811745,76.24,139.18,139.17,8.9912191]
[1763345812144,76.24,139.18,139.16,0.05015363]
[1763345812342,1.7844874,139.17,139.16,0.05015363]
[1763345814843,76.24,139.18,139.16,0.05015363]
[1763345820642,76.24,139.18,139.16,3.40015363]
[1763345820846,0.05258965,139.19,139.16,3.40015363]
[1763345821048,13.09656504,139.29,139.17,3.35]
[1763345821348,4.24750039,139.23,139.14,3.35]
[1763345821646,60.0,139.22,139.14,3.35]
[1763345822042,0.05212091,139.19,139.17,3.39540848]
[1763345822255,0.05212091,139.19,139.17,3.39733979]
[1763345824162,0.05212091,139.19,139.18,12.33953986]
[1763345828754,76.08,139.27,139.19,3.35]
[1763345828957,76.08,139.27,139.12,4.24750039]
[1763345828958,97.24157714,139.27,139.21,3.35]
[1763345829264,97.24157714,139.27,139.22,12.33953986]
[1763345829454,97.24157714,139.27,139.23,8.98953986]
[1763345829652,97.24157714,139.27,139.22,3.35]
[1763345829855,97.24157714,139.27,139.23,9.04233114]
[1763345829856,0.04669701,139.26,139.23,9.04233114]
[1763345830059,0.04669701,139.26,139.23,0.05401141]
[1763345831647,0.04669701,139.26,139.24,12.33798827]
[1763345831856,0.04669701,139.26,139.23,0.05401141]
[1763345832162,0.04669701,139.26,139.24,8.98737117]
[1763345832365,0.04669701,139.26,139.23,3.40401141]
[1763345832662,0.04669701,139.26,139.24,8.98737061]
[1763345832865,0.04669701,139.26,139.25,8.98737061]
[1763345833259,0.04669701,139.26,139.23,3.40401141]
[1763345833560,0.04669701,139.26,139.24,8.98777804]
[1763345833757,0.04669701,139.26,139.23,3.40401141]
[1763345833960,0.04669701,139.26,139.24,8.98757432]
[1763345834162,0.04669701,139.26,139.23,3.40401141]
[1763345834362,0.04669701,139.26,139.24,8.98757432]
[1763345834663,76.10669701,139.26,139.25,8.98757432]
[1763345835258,76.10669701,139.26,139.25,12.33757432]
[1763345838564,0.04669701,139.26,139.25,12.33757432]
[1763345839864,0.04669701,139.26,139.25,12.33540481]
[1763345840062,1.82784997,139.26,139.25,8.98540481]
[1763345840463,1.82784997,139.26,139.25,12.34540481]
[1763345843179,1.82784997,139.26,139.25,8.98540481]
[1763345843368,1.82784997,139.26,139.25,12.31540481]
[1763345843577,1.78115296,139.29,139.26,3.33]
[1763345843773,1.78115296,139.27,139.22,3.33]
[1763345844075,1.78115296,139.27,139.24,3.33]
[1763345844270,1.78115296,139.27,139.26,3.33]
[1763345844471,1.78115296,139.27,139.26,12.31628427]
[1763345844868,1.78115296,139.27,139.26,8.98628427]
[1763345847279,1.78115296,139.27,139.25,0.04966905]
[1763345847464,1.78115296,139.27,139.2,3.33]
[1763345847670,1.78115296,139.24,139.2,3.33]
[1763345848471,0.05345069,139.23,139.22,3.33]
[1763345850664,1.78115296,139.26,139.22,3.33]
[1763345851774,0.05456449,139.25,139.23,0.05101609]
[1763345851979,1.78115296,139.24,139.23,3.37607218]
[1763345853583,1.78115296,139.24,139.23,0.04607218]
[1763345854079,1.78115296,139.24,139.14,3.33]
[1763345854383,1.78115296,139.19,139.14,3.33]
[1763345855089,1.78115296,139.15,139.11,3.33]
[1763345855282,1.78115296,139.13,139.11,3.33]
[1763345855582,0.05086489,139.14,139.12,3.38414979]
[1763345855883,0.04909652,139.14,139.12,3.38462249]
[1763345856074,1.78115296,139.13,139.12,0.05462249]
[1763345856271,1.78115296,139.13,139.08,3.33]
[1763345856579,0.04909652,139.14,139.08,3.33]
[1763345856772,50.16,139.13,139.08,3.33]
[1763345857285,50.16,139.13,139.01,6.58750982]
[1763345857286,50.16,139.13,139.09,3.38407708]
[1763345857470,0.0544097,139.12,139.1,0.04856478]
[1763345857876,0.0544097,139.12,139.1,3.37856478]
[1763345860682,0.0544097,139.12,139.1,0.04856478]
[1763345860883,0.0544097,139.12,139.01,3.33]
[1763345861179,7.39981323,139.09,139.01,3.33]
[1763345861790,7.39981323,139.09,138.97,3.33]
[1763345861970,7.39981323,139.06,138.97,3.33]
[1763345862178,0.05071942,139.04,139.02,0.05073842]
[1763345862472,0.0536737,139.04,139.02,0.04730919]
[1763345864187,0.0536737,139.04,138.96,3.33]
[1763345864188,7.39981323,139.03,138.96,3.33]
[1763345864386,76.08,139.02,138.96,3.33]
[1763345864573,76.08,139.05,138.96,3.33]
[1763345865187,0.05529819,139.02,138.99,3.37790882]
[1763345868486,8.84906465,139.19,139.0,3.33]
[1763345868675,7.39981323,139.14,139.0,3.33]
[1763345869685,0.05341651,139.08,139.06,0.04759239]
[1763345869888,0.05145222,139.08,139.06,0.04798576]
[1763345870491,8.89126545,139.08,138.97,3.33]
[1763345870677,7.39981323,139.08,138.97,3.33]
[1763345871189,7.39981323,139.08,138.88,3.33]
[1763345871190,7.39981323,139.05,138.88,3.33]
[1763345871385,7.39981323,139.05,138.89,62.0]
[1763345871583,7.39981323,139.05,138.9,3.4]
[1763345871782,0.0529078,138.99,138.96,3.45094774]
[1763345872081,0.05140792,138.99,138.96,3.45463255]
[1763345872984,6.62081253,139.15,138.96,3.45463255]
[1763345873180,6.62081253,139.18,138.96,3.4]
[1763345873376,7.39981323,139.14,138.97,3.4]
[1763345873986,7.39981323,139.14,139.04,0.05127307]
[1763345874290,0.05446129,139.1,139.08,0.05227209]
[1763345875279,77.58,139.09,139.01,3.4]
[1763345875486,7.39981323,139.08,139.01,3.4]
[1763345876287,0.04984858,139.06,139.03,0.05300093]
[1763345876486,0.05136243,139.06,139.03,0.05096512]
[1763345879285,0.05136243,139.06,139.03,3.45096512]
[1763345880395,7.39981323,139.05,138.96,3.4]
[1763345880586,7.39981323,139.02,138.87,3.4]
[1763345880785,30.5,139.01,138.87,3.4]
[1763345881498,0.04601208,138.95,138.93,3.4512299]
[1763345881690,0.05347702,138.95,138.93,0.0512299]
[1763345882201,0.05347702,138.95,138.93,3.4512299]
[1763345882591,0.05347702,138.95,138.93,0.0512299]
[1763345884795,76.29347702,138.95,138.93,0.0512299]
[1763345886702,7.39981323,138.94,138.79,3.4]
[1763345887700,0.05403844,138.88,138.79,3.4]
[1763345887899,0.05424059,138.85,138.79,3.4]
[1763345888105,0.05399263,138.83,138.79,3.4]
[1763345888301,7.39981323,138.94,138.79,3.4]
[1763345889507,0.04867357,138.88,138.86,3.4]
[1763345889707,0.04995947,138.88,138.86,0.055225]
[1763345891221,8.8897727,138.88,138.75,3.4]
[1763345891409,7.39981323,138.83,138.75,3.4]
[1763345891912,29.91981323,138.87,138.75,3.4]
[1763345892099,7.39981323,138.83,138.75,3.4]
[1763345892300,0.04548397,138.8,138.75,3.4]
[1763345895202,0.04548397,138.8,138.72,3.4]
[1763345895402,7.39981323,138.83,138.72,3.4]
[1763345895597,0.05160651,138.77,138.72,3.4]
[1763345896309,0.05160651,138.77,138.65,1.25432526]
[1763345896310,0.05160651,138.77,138.69,3.42]
[1763345896510,7.39981323,138.77,138.69,3.42]
[1763345896710,0.04852433,138.74,138.69,3.42]
[1763345900909,7.39981323,138.83,138.7,3.42]
[1763345901115,7.1,138.84,138.7,3.42]
[1763345901815,0.04909341,138.78,138.76,3.27379268]
[1763345902013,0.04858248,138.78,138.76,3.27379268]
[1763345902216,6.60012832,138.97,138.76,3.27379268]
[1763345902407,7.39981323,138.89,138.76,3.22]
[1763345902917,22.34,138.9,138.76,3.22]
[1763345903315,0.0550017,138.84,138.82,0.04558799]
[1763345903610,0.05519395,138.84,138.82,0.05528844]
[1763345903811,0.05519395,138.84,138.82,3.27528844]
[1763345904207,33.72,138.91,138.82,3.27528844]
[1763345904403,33.72,138.91,138.82,3.22]
[1763345905108,0.05017351,138.88,138.85,0.05094979]
[1763345909015,0.05017351,138.88,138.85,3.27094979]
[1763345912220,0.05017351,138.88,138.85,0.05094979]
[1763345913921,0.05017351,138.88,138.74,69.39981323]
[1763345913922,1.49017351,138.88,138.79,3.22]
[1763345914113,7.39981323,138.92,138.79,3.22]
[1763345914317,21.59,138.91,138.79,3.22]
[1763345914922,0.04850871,138.86,138.84,0.05457964]
[1763345915218,0.0469233,138.86,138.84,0.05457964]
[1763345918934,0.0469233,138.86,138.84,3.27457964]
[1763345924230,4.26714477,138.93,138.84,3.27457964]
[1763345924533,4.26714477,138.93,138.84,3.22]
[1763345925229,0.05515891,138.9,138.87,3.2704371]
[1763345929234,4.32230368,138.9,138.87,0.0504371]
[1763345929624,25.91230368,138.9,138.8,3.22]
[1763345929824,32.45727309,138.9,138.8,3.22]
[1763345930227,4.26714477,138.87,138.8,3.22]
[1763345930425,76.26,138.86,138.73,6.56882493]
[1763345930624,76.26,138.86,138.74,3.22]
[1763345930823,0.04823595,138.81,138.78,3.26881287]
[1763345933826,76.26,138.86,138.78,3.26881287]
[1763345935037,0.05202355,138.83,138.78,3.26881287]
[1763345944541,0.00202355,138.83,138.78,3.26881287]
[1763345956549,0.00202355,138.83,138.78,0.04881287]
[1763345956748,0.00202355,138.83,138.78,3.41881287]
[1763345956749,6.69732667,138.83,138.78,3.41881287]
[1763345958556,21.59202355,138.83,138.78,0.04881287]
[1763345958862,11.00047857,138.81,138.78,0.04881287]
[1763345959067,76.26,138.8,138.78,0.04881287]
[1763345962849,76.26,138.79,138.78,0.04881287]
[1763345963048,0.04978479,138.8,138.78,3.33881287]
[1763345963263,0.04979461,138.8,138.78,3.34484697]
[1763345963565,76.26,138.83,138.78,3.34484697]
[1763345964560,0.05154709,138.82,138.78,3.34484697]
[1763345964751,76.26,138.87,138.78,3.29]
[1763345964955,76.26,138.87,138.79,3.29]
[1763345965660,76.26,138.87,138.78,10.97498416]
[1763345965661,6.7333338,138.91,138.82,3.29]
[1763345965963,76.26,138.91,138.82,3.29]
[1763345966364,6.7333338,138.93,138.83,3.29]
[1763345966561,76.26,138.94,138.84,3.29]
[1763345966562,82.98103383,138.94,138.84,3.29]
[1763345966858,0.05179965,138.9,138.89,3.29]
[1763345967060,0.04759146,138.91,138.89,3.29]
[1763345967664,76.26,138.94,138.89,3.29]
[1763345968669,0.0539218,138.93,138.89,3.29]
[1763345968966,0.0539218,138.93,138.88,0.04569674]
[1763345969172,0.0539218,138.93,138.88,3.33569674]
[1763345969666,6.77495563,138.93,138.88,0.04569674]
[1763345970863,6.72103383,138.91,138.88,0.04569674]
[1763345972864,6.72103383,138.91,138.88,3.33569674]
[1763345973069,6.72103383,138.92,138.88,3.33569674]
[1763345973273,6.77871277,138.93,138.88,3.33569674]
[1763345973569,0.0539218,138.93,138.88,3.33569674]
[1763345974072,0.0539218,138.93,138.88,0.04569674]
[1763345974073,6.77871277,138.93,138.88,0.04569674]
[1763345974760,6.72479097,138.92,138.88,0.04569674]
[1763345974971,6.72479097,138.9,138.88,0.04569674]
[1763345975180,76.22,138.89,138.88,0.04569674]
[1763345975479,76.22,138.89,138.82,3.29]
[1763345975480,105.97479097,138.89,138.82,3.29]
[1763345975675,6.72479097,138.87,138.78,3.29]
[1763345975865,10.99193574,138.87,138.78,3.29]
[1763345976169,6.72479097,138.86,138.78,3.29]
[1763345976370,0.0509345,138.84,138.81,3.33978625]
[1763345976564,76.22,138.83,138.81,3.34484253]
[1763345979264,0.05145494,138.84,138.81,3.34484253]
[1763345983474,0.05145494,138.84,138.81,0.05484253]
[1763345990184,0.05145494,138.84,138.81,3.34484253]
[1763345990378,71.57145494,138.84,138.81,3.34484253]
[1763345992183,6.72479097,138.9,138.82,3.41]
[1763345992386,61.2,138.89,138.82,3.41]
[1763345993186,0.04935546,138.87,138.85,3.41]
[1763345994288,0.04935546,138.87,138.84,0.04932275]
[1763345994496,0.04935546,138.87,138.84,3.45932275]
[1763346000383,0.04935546,138.87,138.84,0.04932275]
[1763346000588,6.77414643,138.87,138.84,0.04932275]
[1763346000989,14.20185217,138.87,138.84,0.04932275]
[1763346001188,6.77414643,138.87,138.84,0.04932275]
[1763346001387,0.04935546,138.87,138.84,0.04932275]
[1763346001895,0.04935546,138.87,138.84,3.45932275]
[1763346002697,0.04935546,138.87,138.84,0.04932275]
[1763346002890,0.04935546,138.87,138.84,3.45932275]
[1763346003388,0.04935546,138.87,138.84,0.04932275]
[1763346004090,14.20185217,138.87,138.84,0.04932275]
[1763346004291,35.79185217,138.87,138.84,0.04932275]
[1763346004483,28.31479097,138.86,138.84,0.04932275]
[1763346004992,6.72479097,138.86,138.84,0.04932275]
[1763346006093,6.77414643,138.87,138.84,0.04932275]